fUST/lending_fUST_20250831
["ID","MTS","AMOUNT","RATE_DAILY","PERIOD"]
[382397589,1756600078515,-500.0,0.00018414,2]
[382397590,1756600078545,-500.0,0.00018414,2]
[382397591,1756600078574,-500.0,0.00018414,2]
[382397592,1756600078607,-500.0,0.00018414,2]
[382397593,1756600078794,-451.0055019,0.00018414,2]
[382397594,1756600078823,-500.0,0.00018414,2]
[382397595,1756600078854,-500.0,0.00018414,2]
[382397596,1756600078884,-500.0,0.00018414,2]
[382397597,1756600078915,-500.0,0.00018414,2]
[382397598,1756600078944,-500.0,0.00018414,2]
[382397599,1756600078974,-500.0,0.00018414,2]
[382397600,1756600079003,-500.0,0.00018414,2]
[382397601,1756600079032,-500.0,0.00018414,2]
[382397602,1756600079061,-500.0,0.00018414,2]
[382397603,1756600079192,-450.0,0.00018414,2]
[382397604,1756600079220,-500.0,0.00018414,2]
[382397605,1756600079249,-500.0,0.00018414,2]
[382397606,1756600079279,-500.0,0.00018414,2]
[382397607,1756600079308,-500.0,0.00018414,2]
[382397608,1756600079337,-500.0,0.00018414,2]
[382397609,1756600079366,-500.0,0.00018414,2]
[382397610,1756600079395,-500.0,0.00018414,2]
[382397611,1756600079426,-500.0,0.00018414,2]
[382397612,1756600079625,-500.0,0.00018414,2]
[382397613,1756600079755,-500.0,0.00018414,2]
[382397614,1756600079795,-500.0,0.00018414,2]
[382397615,1756600079824,-500.0,0.00018414,2]
[382397616,1756600079854,-500.0,0.00018414,2]
[382397617,1756600079883,-500.0,0.00018414,2]
[382397618,1756600079912,-500.0,0.00018414,2]
[382397619,1756600079942,-500.0,0.00018414,2]
[382397620,1756600079973,-500.0,0.00018414,2]
[382397621,1756600080003,-500.0,0.00018414,2]
[382397622,1756600080035,-500.0,0.00018414,2]
[382397623,1756600080192,-500.0,0.00018414,2]
[382397624,1756600080223,-500.0,0.00018414,2]
[382397625,1756600080252,-236.50710689,0.00018414,2]
[382397626,1756600080279,-500.0,0.00018414,2]
[382397627,1756600080308,-500.0,0.00018414,2]
[382397628,1756600080337,-500.0,0.00018414,2]
[382397629,1756600080366,-442.18086078,0.00018414,2]
[382397630,1756600080396,-500.0,0.00018414,2]
[382397631,1756600080426,-500.0,0.00018414,2]
[382397632,1756600080458,-500.0,0.00018414,2]
[382397633,1756600080487,-142.63406466,0.00018414,2]
[382397634,1756600080550,-357.36593534,0.00018414,2]
[382397635,1756600080579,-500.0,0.00018414,2]
[382397636,1756600080611,-500.0,0.00018414,2]
[382397637,1756600080640,-500.0,0.00018414,2]
[382397638,1756600080668,-500.0,0.00018414,2]
[382397639,1756600080696,-500.0,0.00018414,2]
[382397640,1756600080723,-500.0,0.00018414,2]
[382397641,1756600080751,-477.68727603,0.00018414,2]
[382397642,1756600080781,-500.0,0.00018414,2]
[382397643,1756600080810,-500.0,0.00018414,2]
[382397644,1756600084628,-500.0,0.00018414,2]
[382397645,1756600084642,-477.68727603,0.00018414,2]
[382397646,1756600084656,-22.31272397,0.00018414,2]
[382397647,1756600084666,-477.68727603,0.00018414,2]
[382397648,1756600084679,-22.31272397,0.00018414,2]
[382397649,1756600084688,-477.68727603,0.00018414,2]
[382397650,1756600084703,-22.31272397,0.00018414,2]
[382397651,1756600084712,-307.59085329,0.00018414,2]
[382397738,1756600238723,-300.0,0.00018312,2]
[382397739,1756600238733,-178.81007934,0.00018312,2]
[382397892,1756600240244,-1021.18992066,0.00018312,2]
[382397894,1756600240255,-500.0,0.00018312,2]
[382397896,1756600240264,-500.0,0.00018312,2]
[382397898,1756600240274,-500.0,0.00018312,2]
[382397900,1756600240284,-500.0,0.00018312,2]
[382397902,1756600240294,-500.0,0.00018312,2]
[382397904,1756600240304,-500.0,0.00018312,2]
[382397906,1756600240313,-500.0,0.00018312,2]
[382397908,1756600240324,-500.0,0.00018312,2]
[382397910,1756600240334,-500.0,0.00018312,2]
[382397912,1756600240344,-400.0,0.00018312,2]
[382397914,1756600240353,-500.0,0.00018312,2]
[382397916,1756600240363,-151.0,0.00018313,2]
[382397918,1756600240372,-151.0,0.00018313,2]
[382397920,1756600240381,-151.0,0.00018313,2]
[382397922,1756600240391,-151.0,0.00018313,2]
[382397924,1756600240400,-151.0,0.00018313,2]
[382397926,1756600240409,-151.0,0.00018313,2]
[382397928,1756600240419,-151.0,0.00018313,2]
[382397930,1756600240428,-151.0,0.00018313,2]
[382397932,1756600240438,-151.0,0.00018313,2]
[382397934,1756600240447,-151.0,0.00018313,2]
[382397936,1756600240456,-151.0,0.00018313,2]
[382397938,1756600240466,-151.0,0.00018313,2]
[382397940,1756600240475,-151.0,0.00018313,2]
[382397942,1756600240485,-151.0,0.00018313,2]
[382397944,1756600240495,-151.0,0.00018313,2]
[382397946,1756600240504,-500.0,0.00018313,2]
[382397948,1756600240514,-488.64523512,0.00018314,2]
[382397950,1756600240524,-466.65424816,0.00018314,2]
[382397952,1756600240534,-226.912113,0.00018314,2]
[382397954,1756600240544,-151.0,0.00018314,2]
[382397956,1756600240554,-151.0,0.00018314,2]
[382397958,1756600240563,-151.0,0.00018314,2]
[382397960,1756600240572,-151.0,0.00018314,2]
[382397962,1756600240582,-151.0,0.00018314,2]
[382397964,1756600240591,-175.845307,0.00018314,2]
[382397966,1756600240600,-5523.14101255,0.00018314,2]
[382398560,1756600246571,-8620.33999996,0.00018314,2]
[382398562,1756600246583,-5299.20439955,0.00018314,2]
[382398952,1756600503782,185.09632065,0.00017764,2]
[382398953,1756600528581,359.398577,0.00013699,2]
[382398956,1756600680303,158.19,0.00016094,2]
[382398960,1756600835787,180.2358551,8.829e-05,2]
[382398961,1756601232264,235.0,0.00018,2]
[382398962,1756601283550,262.09187223,0.00027397,120]
[382399006,1756601437048,-427.56458073,0.00018212,2]
[382399008,1756601437057,-2.25722128,0.00018303,2]
[382399014,1756601437101,-207.14715556,0.00018303,2]
[382399016,1756601437111,-636.05,0.00018304,3]
[382399018,1756601437120,-408.89,0.00018304,3]
[382399020,1756601437129,-204.44,0.00018304,3]
[382399023,1756601437138,-613.37,0.00018304,3]
[382399026,1756601437148,-459.0,0.0001831,2]
[382399029,1756601437157,-300.0,0.0001831,2]
[382399031,1756601437167,-500.0,0.0001831,2]
[382399033,1756601437176,-500.0,0.0001831,2]
[382399034,1756601437185,-500.0,0.0001831,2]
[382399036,1756601437195,-500.0,0.0001831,2]
[382399038,1756601437204,-500.0,0.0001831,2]
[382399040,1756601437213,-500.0,0.0001831,2]
[382399042,1756601437222,-500.0,0.0001831,2]
[382399044,1756601437232,-219.74303067,0.0001831,2]
[382399046,1756601437246,-500.0,0.0001831,2]
[382399049,1756601437256,-185.98479791,0.0001831,2]
[382399051,1756601437267,-500.0,0.0001831,2]
[382399053,1756601437277,-341.34598221,0.0001831,2]
[382399055,1756601437286,-500.0,0.0001831,2]
[382399056,1756601437297,-500.0,0.0001831,2]
[382399058,1756601437309,-346.6150474,0.0001831,2]
[382399060,1756601437319,-500.0,0.0001831,2]
[382399062,1756601437329,-500.0,0.0001831,2]
[382399064,1756601437340,-500.0,0.0001831,2]
[382399065,1756601437349,-500.0,0.0001831,2]
[382399066,1756601437359,-500.0,0.0001831,2]
[382399067,1756601437368,-500.0,0.0001831,2]
[382399068,1756601437378,-500.0,0.0001831,2]
[382399069,1756601437388,-500.0,0.0001831,2]
[382399070,1756601437397,-500.0,0.0001831,2]
[382399071,1756601437407,-548.14383174,0.0001831,2]
[382399072,1756601437416,-500.0,0.0001831,2]
[382399073,1756601437425,-500.0,0.0001831,2]
[382399074,1756601437435,-500.0,0.0001831,2]
[382399075,1756601437444,-500.0,0.0001831,2]
[382399076,1756601437453,-500.0,0.0001831,2]
[382399077,1756601437462,-500.0,0.0001831,2]
[382399078,1756601437471,-500.0,0.0001831,2]
[382399079,1756601437481,-500.0,0.0001831,2]
[382399080,1756601437491,-500.0,0.0001831,2]
[382399081,1756601437500,-500.0,0.0001831,2]
[382399082,1756601437509,-500.0,0.0001831,2]
[382399083,1756601437519,-500.0,0.0001831,2]
[382399084,1756601437528,-250.0,0.0001831,2]
[382399085,1756601437538,-500.0,0.0001831,2]
[382399086,1756601437547,-202.8695896,0.00018311,2]
[382399087,1756601437556,-162.951146,0.00018311,2]
[382399088,1756601437565,-162.951146,0.00018311,2]
[382399089,1756601437575,-162.951146,0.00018311,2]
[382399090,1756601437735,-162.951146,0.00018311,2]
[382399091,1756601437790,-162.951146,0.00018311,2]
[382399092,1756601437800,-162.951146,0.00018311,2]
[382399093,1756601437809,-162.951146,0.00018311,2]
[382399094,1756601437819,-162.951146,0.00018311,2]
[382399096,1756601437828,-162.951146,0.00018311,2]
[382399097,1756601437838,-162.951146,0.00018311,2]
[382399098,1756601437847,-162.951146,0.00018311,2]
[382399099,1756601437857,-162.951146,0.00018311,2]
[382399100,1756601437867,-206.126968,0.00018311,2]
[382399101,1756601437877,-151.0,0.00018311,2]
[382399102,1756601437886,-151.0,0.00018311,2]
[382399103,1756601437896,-151.0,0.00018311,2]
[382399104,1756601437905,-151.0,0.00018311,2]
[382399105,1756601437914,-151.0,0.00018311,2]
[382399106,1756601437924,-151.0,0.00018311,2]
[382399107,1756601437934,-151.0,0.00018311,2]
[382399108,1756601437943,-265.24209493,0.00018311,2]
[382399109,1756601437953,-151.0,0.00018312,2]
[382399110,1756601437963,-151.0,0.00018312,2]
[382399111,1756601437972,-216.380851,0.00018312,2]
[382399112,1756601437981,-151.0,0.00018312,2]
[382399113,1756601437991,-151.0,0.00018312,2]
[382399115,1756601438000,-151.0,0.00018312,2]
[382399116,1756601438010,-151.0,0.00018312,2]
[382399117,1756601438021,-151.0,0.00018312,2]
[382399118,1756601438030,-151.0,0.00018312,2]
[382399119,1756601438039,-151.0,0.00018312,2]
[382399120,1756601438050,-151.0,0.00018312,2]
[382399121,1756601438059,-335.336341,0.00018312,2]
[382399122,1756601438069,-335.336341,0.00018312,2]
[382399123,1756601438079,-335.336341,0.00018312,2]
[382399124,1756601438088,-335.336341,0.00018312,2]
[382399125,1756601438098,-335.336341,0.00018312,2]
[382399126,1756601438107,-335.336341,0.00018312,2]
[382399127,1756601438117,-335.336341,0.00018312,2]
[382399128,1756601438127,-335.336341,0.00018312,2]
[382399129,1756601438137,-335.336341,0.00018312,2]
[382399130,1756601438147,-335.336341,0.00018312,2]
[382399132,1756601438157,-335.336341,0.00018312,2]
[382399134,1756601438166,-335.336341,0.00018312,2]
[382399136,1756601438176,-151.0,0.00018312,2]
[382399137,1756601438186,-230.107363,0.00018312,2]
[382399138,1756601438195,-190.877236,0.00018312,2]
[382399139,1756601438204,-190.877236,0.00018312,2]
[382399140,1756601438214,-190.877236,0.00018312,2]
[382399141,1756601438224,-190.877236,0.00018312,2]
[382399142,1756601438234,-190.877236,0.00018312,2]
[382399143,1756601438244,-190.877236,0.00018312,2]
[382399144,1756601438253,-190.877236,0.00018312,2]
[382399145,1756601438262,-190.877236,0.00018312,2]
[382399146,1756601438271,-190.877236,0.00018312,2]
[382399147,1756601438281,-190.877236,0.00018312,2]
[382399148,1756601438289,-190.877236,0.00018312,2]
[382399149,1756601438299,-190.877236,0.00018312,2]
[382399150,1756601438308,-162.951146,0.00018312,2]
[382399152,1756601438318,-162.951146,0.00018312,2]
[382399154,1756601438327,-162.951146,0.00018312,2]
[382399157,1756601438336,-162.951146,0.00018312,2]
[382399158,1756601438345,-1475.0,0.00018312,2]
[382399159,1756601438355,-500.0,0.00018312,2]
[382399160,1756601438365,-500.0,0.00018312,2]
[382399161,1756601438375,-500.0,0.00018312,2]
[382399162,1756601438385,-500.0,0.00018312,2]
[382399163,1756601438394,-500.0,0.00018312,2]
[382399164,1756601438403,-151.0,0.00018312,2]
[382399165,1756601438414,-151.0,0.00018312,2]
[382399166,1756601438423,-500.0,0.00018312,2]
[382399167,1756601438432,-151.0,0.00018312,2]
[382399168,1756601438441,-151.0,0.00018312,2]
[382399169,1756601438451,-500.0,0.00018312,2]
[382399170,1756601438463,-500.0,0.00018312,2]
[382399171,1756601438474,-151.0,0.00018312,2]
[382399172,1756601438486,-151.0,0.00018312,2]
[382399173,1756601438497,-500.0,0.00018312,2]
[382399174,1756601438507,-151.0,0.00018312,2]
[382399175,1756601438516,-500.0,0.00018312,2]
[382399176,1756601438526,-151.0,0.00018312,2]
[382399177,1756601438535,-500.0,0.00018312,2]
[382399178,1756601438545,-151.0,0.00018312,2]
[382399179,1756601438555,-500.0,0.00018312,2]
[382399180,1756601438564,-500.0,0.00018312,2]
[382399181,1756601438574,-500.0,0.00018312,2]
[382399182,1756601438585,-151.0,0.00018313,2]
[382399183,1756601438596,-500.0,0.00018313,2]
[382399184,1756601438606,-151.0,0.00018313,2]
[382399185,1756601438616,-151.0,0.00018313,2]
[382399186,1756601438628,-500.0,0.00018313,2]
[382399187,1756601438637,-500.0,0.00018313,2]
[382399188,1756601438647,-500.0,0.00018313,2]
[382399189,1756601438656,-151.0,0.00018313,2]
[382399190,1756601438667,-151.0,0.00018313,2]
[382399191,1756601438677,-151.0,0.00018313,2]
[382399192,1756601438687,-151.0,0.00018313,2]
[382399193,1756601438696,-500.0,0.00018313,2]
[382399194,1756601438706,-229.81466995,0.00018313,2]
[382399195,1756601438716,-373.32339852,0.00018313,2]
[382399196,1756601438726,-335.336341,0.00018313,2]
[382399197,1756601438735,-335.336341,0.00018313,2]
[382399198,1756601438745,-335.336341,0.00018313,2]
[382399199,1756601438754,-335.336341,0.00018313,2]
[382399200,1756601438764,-335.336341,0.00018313,2]
[382399201,1756601438773,-335.336341,0.00018313,2]
[382399202,1756601438783,-335.336341,0.00018313,2]
[382399203,1756601438794,-335.336334,0.00018313,2]
[382399204,1756601438804,-190.877236,0.00018313,2]
[382399205,1756601438814,-190.877236,0.00018313,2]
[382399206,1756601438825,-190.877236,0.00018313,2]
[382399207,1756601438834,-190.877236,0.00018313,2]
[382399208,1756601438845,-190.877236,0.00018313,2]
[382399209,1756601438855,-190.877236,0.00018313,2]
[382399210,1756601438866,-190.877236,0.00018313,2]
[382399211,1756601438876,-190.877232,0.00018313,2]
[382399212,1756601438886,-162.951146,0.00018313,2]
[382399213,1756601438896,-162.951146,0.00018313,2]
[382399214,1756601438905,-162.951146,0.00018313,2]
[382399215,1756601438914,-162.951136,0.00018313,2]
[382399216,1756601438924,-2000.0,0.00018314,3]
[382399217,1756601438934,-15691.64676862,0.00018414,2]
[382399218,1756601439220,-500.0,0.0001831,2]
[382399219,1756601439232,-500.0,0.0001831,2]
[382399220,1756601439246,-500.0,0.0001831,2]
[382399221,1756601439256,-17012.29154298,0.00018414,2]
[382399222,1756601439266,-647.0,0.000185,2]
[382399223,1756601439277,-203.68513971,0.00018503,2]
[382399224,1756601439287,-373.32339849,0.00018504,2]
[382399225,1756601439297,-167.26128089,0.0001853,2]
[382399226,1756601439308,-1475.0,0.00018586,2]
[382399227,1756601439320,-500.0,0.00018586,2]
[382399228,1756601439331,-500.0,0.00018586,2]
[382399229,1756601439341,-550.04369631,0.00018586,2]
[382399230,1756601439351,-500.0,0.00018586,2]
[382399231,1756601439361,-500.0,0.00018586,2]
[382399232,1756601439371,-151.0,0.00018586,2]
[382399233,1756601439381,-500.0,0.00018586,2]
[382399234,1756601439390,-151.0,0.00018586,2]
[382399235,1756601439400,-244.74477474,0.00018586,2]
[382399236,1756601439409,-500.0,0.00018586,2]
[382399237,1756601439418,-500.0,0.00018586,2]
[382399238,1756601439427,-151.0,0.00018586,2]
[382399239,1756601439436,-500.0,0.00018586,2]
[382399240,1756601439446,-250.87244233,0.00018586,2]
[382399241,1756601439455,-500.0,0.00018586,2]
[382399242,1756601439465,-151.0,0.00018586,2]
[382399243,1756601439474,-500.0,0.00018586,2]
[382399244,1756601439484,-500.0,0.00018586,2]
[382399245,1756601439494,-610.10453107,0.00018586,2]
[382399246,1756601439505,-500.0,0.00018586,2]
[382399247,1756601439515,-151.0,0.00018587,2]
[382399248,1756601439524,-500.0,0.00018587,2]
[382399249,1756601439533,-151.0,0.00018587,2]
[382399250,1756601439543,-151.0,0.00018587,2]
[382399251,1756601439552,-500.0,0.00018587,2]
[382399252,1756601439561,-500.0,0.00018587,2]
[382399253,1756601439571,-151.0,0.00018587,2]
[382399254,1756601439580,-151.0,0.00018587,2]
[382399255,1756601439589,-151.0,0.00018587,2]
[382399256,1756601439598,-151.0,0.00018587,2]
[382399257,1756601439611,-500.0,0.00018587,2]
[382399258,1756601439620,-369.14,0.00018588,2]
[382399259,1756601439630,-974.0,0.00018653,2]
[382399260,1756601439639,-632.0,0.00018653,2]
[382399261,1756601439648,-2152.0,0.00018653,2]
[382399262,1756601439657,-168.0,0.00018693,2]
[382399263,1756601439667,-373.32339849,0.00018696,2]
[382399264,1756601439676,-647.1185,0.000187,2]
[382399265,1756601439687,-168.0,0.00018716,2]
[382399266,1756601439697,-500.0,0.00018729,2]
[382399267,1756601439707,-168.0,0.00018736,2]
[382399268,1756601439716,-155.0,0.00018742,2]
[382399269,1756601439726,-155.0,0.00018743,2]
[382399270,1756601439736,-1018.03867802,0.00018792,2]
[382399271,1756601439745,-207.833,0.00018815,2]
[382399272,1756601439754,-150.0,0.00018815,2]
[382399273,1756601439764,-150.0,0.00018815,2]
[382399274,1756601439773,-150.0,0.00018815,2]
[382399275,1756601439783,-150.0,0.00018815,2]
[382399276,1756601439792,-175.234,0.00018815,2]
[382399277,1756601439802,-168.0,0.00018826,2]
[382399278,1756601439811,-1475.0,0.0001886,2]
[382399279,1756601439821,-500.0,0.0001886,2]
[382399280,1756601439830,-500.0,0.0001886,2]
[382399281,1756601439839,-500.0,0.0001886,2]
[382399282,1756601439849,-500.0,0.0001886,2]
[382399283,1756601439858,-151.0,0.0001886,2]
[382399284,1756601439868,-500.0,0.0001886,2]
[382399285,1756601439878,-151.0,0.0001886,2]
[382399286,1756601439887,-500.0,0.0001886,2]
[382399287,1756601439896,-500.0,0.0001886,2]
[382399288,1756601439906,-500.0,0.0001886,2]
[382399289,1756601439915,-500.0,0.0001886,2]
[382399290,1756601439925,-257.22931719,0.0001886,2]
[382399291,1756601439936,-512.79227832,0.0001886,2]
[382399292,1756601439946,-500.0,0.0001886,2]
[382399293,1756601439956,-500.0,0.0001886,2]
[382399294,1756601439970,-230.03934724,0.00018861,2]
[382399295,1756601439980,-500.0,0.00018861,2]
[382399296,1756601439991,-151.0,0.00018861,2]
[382399297,1756601440002,-152.73442522,0.00018861,2]
[382399298,1756601440012,-326.25348856,0.00018861,2]
[382399299,1756601440022,-198.63330362,0.00018861,2]
[382399300,1756601440032,-151.0,0.00018861,2]
[382399301,1756601440041,-151.0,0.00018861,2]
[382399302,1756601440051,-500.0,0.00018861,2]
[382399303,1756601440060,-373.32339849,0.00018887,2]
[382399304,1756601440070,-711.90301884,0.000189,2]
[382399305,1756601440079,-500.0,0.00018904,2]
[382399306,1756601440089,-500.0,0.00018904,2]
[382399307,1756601440101,-500.0,0.00018904,2]
[382399308,1756601440110,-500.0,0.00018904,2]
[382399309,1756601440120,-500.0,0.00018904,2]
[382399310,1756601440129,-552.79145601,0.00018904,2]
[382399311,1756601440139,-342.0,0.00018978,2]
[382399313,1756601440149,-232.73020027,0.00018991,2]
[382399315,1756601440159,-11361.55901651,0.00018991,2]
[382399317,1756601440168,-216.25802849,0.00018991,2]
[382399319,1756601440178,-160.0,0.00018991,2]
[382399321,1756601440194,-845.75060209,0.00018991,2]
[382399323,1756601440204,-160.0,0.00018991,2]
[382399325,1756601440216,-160.0,0.00018991,2]
[382399328,1756601440226,-160.0,0.00018991,2]
[382399329,1756601440236,-417.15472785,0.00018992,2]
[382399331,1756601440249,-425.65682239,0.00018992,2]
[382399333,1756601440258,-217.34977173,0.00018992,2]
[382399335,1756601440268,-160.0,0.00018993,2]
[382399337,1756601440279,-160.0,0.00018993,2]
[382399339,1756601440288,-160.0,0.00018993,2]
[382399341,1756601440298,-160.0,0.00018993,2]
[382399343,1756601440308,-500.0,0.00018999,2]
[382399345,1756601440318,-306.14977103,0.00018999,2]
[382399347,1756601440328,-500.0,0.00018999,2]
[382399349,1756601440338,-156030.9900946,0.00019,2]
[382399351,1756601440347,-427.56458071,0.00019025,2]
[382399353,1756601440357,-7210.28768832,0.00019063,2]
[382399354,1756601440366,-373.32339849,0.00019078,2]
[382399357,1756601440376,-151.0,0.000191,2]
[382399358,1756601440386,-168.0,0.00019106,2]
[382399359,1756601440395,-1475.0,0.00019134,2]
[382399360,1756601440405,-500.0,0.00019134,2]
[382399361,1756601440414,-500.0,0.00019134,2]
[382399362,1756601440424,-264.75217518,0.00019134,2]
[382399363,1756601440438,-500.0,0.00019134,2]
[382399364,1756601440448,-257.03528636,0.00019134,2]
[382399365,1756601440458,-500.0,0.00019134,2]
[382399366,1756601440468,-259.14167299,0.00019134,2]
[382399367,1756601440478,-500.0,0.00019134,2]
[382399368,1756601440487,-500.0,0.00019134,2]
[382399369,1756601440497,-500.0,0.00019134,2]
[382399370,1756601440506,-500.0,0.00019134,2]
[382399371,1756601440516,-500.0,0.00019134,2]
[382399372,1756601440525,-500.0,0.00019134,2]
[382399373,1756601440535,-500.0,0.00019135,2]
[382399374,1756601440544,-151.0,0.00019135,2]
[382399375,1756601440554,-237.21657578,0.00019135,2]
[382399376,1756601440563,-151.0,0.00019135,2]
[382399377,1756601440572,-270.25679788,0.00019135,2]
[382399378,1756601440582,-500.0,0.00019173,2]
[382399379,1756601440591,-500.0,0.00019173,2]
[382399380,1756601440601,-500.0,0.00019173,2]
[382399381,1756601440611,-500.0,0.00019173,2]
[382399382,1756601440620,-500.0,0.00019173,2]
[382399383,1756601440630,-500.0,0.00019173,2]
[382399384,1756601440639,-500.0,0.00019173,2]
[382399385,1756601440650,-500.0,0.00019173,2]
[382399386,1756601440659,-500.0,0.00019173,2]
[382399387,1756601440669,-222.72368656,0.00019173,2]
[382399388,1756601440679,-500.0,0.00019173,2]
[382399389,1756601440693,-500.0,0.00019173,2]
[382399390,1756601440703,-297.15962929,0.00019173,2]
[382399391,1756601440719,-500.0,0.00019173,2]
[382399392,1756601440728,-277.88176164,0.00019173,2]
[382399393,1756601440738,-500.0,0.00019173,2]
[382399394,1756601440752,-500.0,0.00019173,2]
[382399395,1756601440762,-500.0,0.00019173,2]
[382399396,1756601440775,-351.0219958,0.00019173,2]
[382399397,1756601440791,-500.0,0.00019173,2]
[382399398,1756601440800,-500.0,0.00019173,2]
[382399399,1756601440810,-500.0,0.00019173,2]
[382399400,1756601440819,-423.64203143,0.00019173,2]
[382399401,1756601440829,-500.0,0.00019173,2]
[382399402,1756601440838,-500.0,0.00019173,2]
[382399403,1756601440848,-500.0,0.00019173,2]
[382399404,1756601440857,-500.0,0.00019173,2]
[382399405,1756601440866,-500.0,0.00019173,2]
[382399406,1756601440876,-500.0,0.00019173,2]
[382399407,1756601440885,-500.0,0.00019173,2]
[382399408,1756601440894,-500.0,0.00019173,2]
[382399409,1756601440904,-500.0,0.00019173,2]
[382399410,1756601440913,-500.0,0.00019173,2]
[382399411,1756601440923,-480.0,0.00019178,2]
[382399412,1756601440932,-500.0,0.00019178,2]
[382399413,1756601440943,-420.38840629,0.00019178,2]
[382399414,1756601440953,-500.74996197,0.00019178,2]
[382399415,1756601440963,-480.0,0.00019178,2]
[382399416,1756601440972,-301.70115672,0.00019178,2]
[382399417,1756601440982,-1076.12,0.00019178,2]
[382399418,1756601440991,-480.0,0.00019178,2]
[382399419,1756601441000,-480.0,0.00019178,2]
[382399420,1756601441010,-480.0,0.00019178,2]
[382399421,1756601441019,-480.0,0.00019178,2]
[382399422,1756601441028,-696.86,0.00019178,2]
[382399423,1756601441037,-483.97603794,0.00019178,2]
[382399424,1756601441047,-700.92,0.00019178,2]
[382399425,1756601441056,-480.0,0.00019178,2]
[382399426,1756601441065,-480.0,0.00019178,2]
[382399427,1756601441075,-581.46,0.00019178,2]
[382399428,1756601441084,-480.0,0.00019178,2]
[382399429,1756601441094,-648.57,0.00019178,2]
[382399430,1756601441266,-480.0,0.00019178,2]
[382399431,1756601441276,-729.39,0.00019178,2]
[382399432,1756601441289,-480.0,0.00019178,2]
[382399433,1756601441299,-480.0,0.00019178,2]
[382399434,1756601441311,-480.0,0.00019178,2]
[382399435,1756601441321,-480.0,0.00019178,2]
[382399436,1756601441330,-480.0,0.00019178,2]
[382399437,1756601441340,-480.0,0.00019178,2]
[382399438,1756601441349,-480.0,0.00019178,2]
[382399439,1756601441358,-725.68,0.00019178,2]
[382399440,1756601441368,-480.0,0.00019178,2]
[382399441,1756601441379,-480.0,0.00019178,2]
[382399442,1756601441388,-480.0,0.00019178,2]
[382399443,1756601441399,-579.2,0.00019178,2]
[382399444,1756601441410,-480.0,0.00019178,2]
[382399445,1756601441421,-574.83,0.00019178,2]
[382399446,1756601441431,-480.0,0.00019178,2]
[382399447,1756601441443,-857.23,0.00019178,2]
[382399448,1756601441453,-480.0,0.00019178,2]
[382399449,1756601441463,-480.0,0.00019178,2]
[382399450,1756601441474,-480.0,0.00019178,2]
[382399451,1756601441485,-480.0,0.00019178,2]
[382399452,1756601441494,-480.0,0.00019178,2]
[382399453,1756601441504,-480.0,0.00019178,2]
[382399454,1756601441514,-480.0,0.00019178,2]
[382399455,1756601441523,-480.0,0.00019178,2]
[382399456,1756601441533,-480.0,0.00019178,2]
[382399457,1756601441543,-504.26,0.00019178,2]
[382399458,1756601441552,-480.0,0.00019178,2]